[Event "4th Tata Steel India Blitz Women 2022"]
[Site "Kolkota"]
[Date "2022.12.03"]
[Round "9.1"]
[White "Harika, Dronavalli"]
[Black "Savitha Shri B"]
[Result "1-0"]
[ECO "A49"]
[WhiteElo "2507"]
[BlackElo "2411"]
[Annotator "TA"]
[PlyCount "141"]
[EventDate "2022.11.29"]
[EventType "tourn"]
[EventCountry "IND"]
[SourceTitle "playchess.com"]
[Source "ChessBase"]
[SourceQuality "1"]
[TimeControl "180+2"]

{[%evp 12,141,19,30,23,21,18,4,11,0,2,11,12,-3,7,-2,36,35,85,91,93,75,88,74,70,59,115,118,118,120,120,116,114,106,144,134,151,151,150,153,160,170,180,175,160,153,153,153,198,142,218,241,353,139,140,0,412,381,1154,536,533,491,493,233,667,670,666,667,544,388,271,238,211,239,450,430,629,256,245,247,252,246,229,187,187,185,240,93,93,93,166,165,335,93,273,117,156,150,170,193,179,117,316,304,951,897,791,791,4219,4562,2877,1092,3316,2118,12831,6137,2154,498,492,0,457,421,396,363,2686,3437,12840,12840,12843,12839,12840,6729]} 1. Nf3 {[%emt 0:00:01]} Nf6 {[%emt 0:00:04]} 2. b3 {[%emt 0:00:01]} g6 {[%emt 0:00:02]} 3. Bb2 {[%emt 0:00:01]} Bg7 {[%emt 0:00:01]} 4. g3 {[%emt 0:00:01]} d6 {[%emt 0:00:01]} 5. d4 {[%emt 0:00:01]} O-O {[%emt 0:00:03]} 6. Bg2 {[%emt 0:00:01]} Nbd7 {[%emt 0:00:07]} 7. O-O {[%emt 0:00:07]} Rb8 {[%emt 0:00:08] 7...c6 gains popularity. A49: 1 d4 Nf6 2 Nf3 g6 3 g3: Anti-King's Indian systems.} 8. a4 {[%emt 0:00:03]} b6 {[%emt 0:00:03]} 9. Re1 {[%emt 0:00:15]} Bb7 {[%emt 0:00:00] The position is equal.} 10. Nbd2 {[%emt 0:00:18] [#]} Ne4 $146 {[%emt 0:00:01]} ({Predecessor:} 10... a6 11. e4 e5 12. dxe5 Ng4 13. Qc1 Ngxe5 14. Nxe5 dxe5 15. Nc4 Re8 16. Qe3 Qe7 {0-1 (63) Ambartsumova,K (2386)-Guseinov,G (2668) Chess.com INT 2022}) 11. Nxe4 {[%emt 0:00:03]} Bxe4 {[%emt 0:00:02]} 12. Bh3 {[%emt 0:00:02]} c5 {[%emt 0:00:11]} 13. Ra2 {[%emt 0:00:26]} Qc7 {[%emt 0:00:19]} 14. c4 {[%emt 0:00:12]} Rbd8 {[%emt 0:00:38]} ({Black should try} 14... a6 $14) 15. d5 $16 {[%emt 0:00:04]} Bxf3 {[%emt 0:00:31]} 16. exf3 {[%emt 0:00:03]} Nf6 {[%emt 0:00:13]} 17. f4 {[%emt 0:00:04]} a6 {[%emt 0:00:04]} 18. Ba1 {[%emt 0:00:05]} b5 {[%emt 0:00:04]} (18... Rb8 $14) 19. axb5 {[%emt 0:00:02]} axb5 {[%emt 0:00:01]} 20. cxb5 {[%emt 0:00:11]} Qb7 {[%emt 0:00:01][%csl LRb5,LRd5]} 21. Bxf6 {[%emt 0:00:19]} Bxf6 {[%emt 0:00:01]} 22. Bf1 {[%emt 0:00:01]} Ra8 {[%emt 0:00:12]} 23. Ra6 {[%emt 0:00:02]} Bd4 {[%emt 0:00:05]} 24. Bc4 {[%emt 0:00:05]} Qd7 {[%emt 0:00:10]} 25. Kg2 {[%emt 0:00:04]} Rfb8 {[%emt 0:00:24]} 26. Qf3 {[%emt 0:00:02]} Ra7 {[%emt 0:00:07]} 27. h4 {[%emt 0:00:08][%cal Bh2h4,Bh4h5][%mdl 32]} Rab7 {[%emt 0:00:07]} 28. h5 {[%emt 0:00:05]} Qf5 {[%emt 0:00:00]} 29. Bd3 {[%emt 0:00:16]} Qf6 {[%emt 0:00:01]} 30. Re2 {[%emt 0:00:07]} ({Better is} 30. h6 $18) 30... Kg7 {[%emt 0:00:06]} (30... Qg7 $16 {might work better.} 31. hxg6 hxg6) 31. Qg4 $18 {[%emt 0:00:08]} Rc7 {[%emt 0:00:08]} (31... Bc3 $142 32. hxg6 fxg6) 32. Bc4 $2 {[%emt 0:00:11]} (32. Rc6 $18 Ra7 33. b6) 32... Rcb7 $16 {[%emt 0:00:03]} 33. Bd3 {[%emt 0:00:14]} (33. Rc6 $16) 33... Kg8 $2 {[%emt 0:00:01][%mdl 8192]} (33... Rc7 $1 $11 {and Black has nothing to worry.} 34. Rc6 Rcb7) 34. h6 {[%emt 0:00:03]} Rc7 $2 {[%emt 0:00:04]} (34... Rd8 35. Rc6 Rbb8) 35. Rea2 {[%emt 0:00:04]} (35. Rc6 $142 Rxc6 36. dxc6) 35... e5 {[%emt 0:00:05]} 36. fxe5 {[%emt 0:00:14]} Bxe5 {[%emt 0:00:02]} 37. Bc4 {[%emt 0:00:04]} (37. Ra8 $142 Qd8 38. Rxb8 Qxb8 39. Ra6) 37... Re7 $2 {[%emt 0:00:03]} (37... Qd8 38. Qe4 Qf8) 38. Ra8 $18 {[%emt 0:00:02]} Ree8 {[%emt 0:00:00]} 39. Rxb8 {[%emt 0:00:01]} Rxb8 {[%emt 0:00:01]} 40. Ra7 {[%emt 0:00:02]} Bd4 {[%emt 0:00:01]} 41. Qf3 {[%emt 0:00:00] Active counter play!} Qxf3+ {[%emt 0:00:03]} 42. Kxf3 {[%emt 0:00:02][%mdl 4096] Endgame KRB-KRB} Bc3 $2 {[%emt 0:00:02]} (42... Kf8 43. Ra6 Ke7) 43. Rd7 {[%emt 0:00:01]} ({Weaker is} 43. b6 Kf8 $16) 43... Be5 {[%emt 0:00:02]} (43... Kf8 $142 44. Rxd6 Ke8) 44. Kg2 {[%emt 0:00:02]} (44. b6 $142) 44... Kf8 {[%emt 0:00:01]} 45. f4 {[%emt 0:00:02]} Ke8 {[%emt 0:00:01]} 46. Rc7 {[%emt 0:00:03]} Bf6 {[%emt 0:00:01]} 47. Kf3 {[%emt 0:00:03]} Be7 {[%emt 0:00:01]} 48. Ra7 {[%emt 0:00:01]} Bf8 {[%emt 0:00:01]} (48... Bd8 {was called for.} 49. Bd3 Bb6) 49. Ra1 {[%emt 0:00:04]} (49. Ra6 $1 $18) 49... Bxh6 $16 {[%emt 0:00:05]} 50. Rh1 {[%emt 0:00:00]} Bf8 {[%emt 0:00:01]} (50... Bg7 $16) 51. Rxh7 $18 {[%emt 0:00:01]} Ke7 $2 {[%emt 0:00:00]} (51... Rb7 52. Rh8 f6) 52. Rh1 $2 {[%emt 0:00:02]} (52. Bd3 $1 $18 {[%cal Rd3g6] is the precise move to win.}) 52... Kd7 $2 {[%emt 0:00:01]} (52... Bg7 $16) 53. Ra1 {[%emt 0:00:01]} (53. Rh8 $18 {has better winning chances.}) 53... Be7 {[%emt 0:00:04]} 54. Ra7+ {[%emt 0:00:01]} Kd8 {[%emt 0:00:01]} 55. g4 {[%emt 0:00:02]} Ke8 {[%emt 0:00:03] [#]} 56. Ke4 {[%emt 0:00:01]} (56. Ra6 $1 $18) 56... Kd8 $2 {[%emt 0:00:03]} (56... Bd8 $16 57. g5 Bb6) 57. f5 {[%emt 0:00:02]} g5 $2 {[%emt 0:00:02] [#]} (57... Ke8 58. fxg6 fxg6) 58. f6 $1 {[%emt 0:00:04]} Bxf6 {[%emt 0:00:03]} 59. Rxf7 {[%emt 0:00:01]} Be7 {[%emt 0:00:01]} 60. Kf5 {[%emt 0:00:01]} Kd7 {[%emt 0:00:01]} 61. Kg6 {[%emt 0:00:09]} (61. Rg7 $142 Rb6 62. Bd3) 61... Rb6 {[%emt 0:00:00]} 62. Bd3 {[%emt 0:00:02] Bf5+ is the strong threat.} Kd8 {[%emt 0:00:02]} 63. Rh7 {[%emt 0:00:01]} Rb7 {[%emt 0:00:08]} 64. Rh8+ {[%emt 0:00:02]} (64. Bf5 $142 Ke8 65. Rh8+ Bf8 66. Kf6 Rxb5 67. Bg6+ Kd8 68. Rxf8+ Kc7 69. Bf5) 64... Kc7 {[%emt 0:00:01]} 65. Rh7 $2 {[%emt 0:00:03]} (65. Kf7 $18 Bd8 66. Ke6) 65... Kb6 $2 {[%emt 0:00:01][%mdl 8192]} (65... Kd8 $1 $11 {and Black stays safe.} 66. Bf5 Rxb5) 66. Kf5 {[%emt 0:00:02]} Bd8 {[%emt 0:00:03]} 67. Rh8 {[%emt 0:00:04]} Be7 $2 {[%emt 0:00:01]} (67... Kc7 68. Ke6 Rb6) 68. Ke6 {[%emt 0:00:01] And now Re8 would win. White is clearly winning.} Ka5 {[%emt 0:00:09]} 69. Rh7 Kb4 {[%emt 0:00:00]} 70. Rxe7 {[%emt 0:00:03]} Rb6 {[%emt 0:00:00]} 71. Bc4 {[%emt 0:00:01] Weighted Error Value: White=0.59/Black=0.58} 1-0

[Event "4th Tata Steel India Blitz Women 2022"]
[Site "Kolkota"]
[Date "2022.12.03"]
[Round "9.2"]
[White "Dzagnidze, Nana"]
[Black "Muzychuk, Mariya"]
[Result "0-1"]
[ECO "D10"]
[WhiteElo "2517"]
[BlackElo "2528"]
[Annotator "TA"]
[PlyCount "64"]
[EventDate "2022.11.29"]
[EventType "tourn"]
[EventCountry "IND"]
[SourceTitle "playchess.com"]
[Source "ChessBase"]
[SourceQuality "1"]
[TimeControl "180+2"]

{[%evp 11,64,17,18,12,14,9,12,10,14,16,17,10,9,6,10,1,16,9,14,0,22,8,12,0,0,15,22,10,23,16,16,16,12,16,25,22,52,54,81,77,107,6,34,38,187,7,7,7,7,14,0,-716,-688,-660,-610]} 1. d4 {[%emt 0:00:02]} d5 {[%emt 0:00:00]} 2. c4 {[%emt 0:00:01]} c6 {[%emt 0:00:01]} 3. cxd5 {[%emt 0:00:04]} cxd5 {[%emt 0:00:00]} 4. Nc3 {[%emt 0:00:01]} Nf6 {[%emt 0:00:01]} 5. Bf4 {[%emt 0:00:02]} Nc6 {[%emt 0:00:02]} 6. e3 {[%emt 0:00:01]} Bg4 {[%emt 0:00:01]} 7. Qb3 {[%emt 0:00:04] D10: Slav Defence: 3 cxd5 (without early Nf3) and 3 Nc3.} Na5 {[%emt 0:00:02]} 8. Qa4+ {[%emt 0:00:01]} Bd7 {[%emt 0:00:01]} 9. Qc2 {[%emt 0:00:01] The position is equal.} e6 {[%emt 0:00:05]} 10. Bd3 {[%emt 0:00:05]} Be7 {[%emt 0:00:04]} 11. h3 {[%emt 0:00:08]} Ne4 {[%emt 0:00:25]} 12. Nf3 {[%emt 0:00:58]} f5 {[%emt 0:00:25]} 13. Ne5 {[%emt 0:00:11]} O-O {[%emt 0:00:05]} 14. O-O {[%emt 0:00:03]} Rc8 {[%emt 0:00:05]} 15. Rfc1 {[%emt 0:00:17]} Nc6 {[%emt 0:00:21] [#]} 16. Nxd7 $146 {[%emt 0:00:40]} ({Predecessor:} 16. Qe2 a6 17. a3 Nxe5 18. Bxe5 Bh4 19. Nd1 Qe7 20. f3 Nd6 21. Qd2 Nf7 22. Nc3 Nxe5 23. dxe5 g6 {1-0 (23) Carter,M (1926)-Egorov,V (1887) LSS email 2019}) 16... Qxd7 {[%emt 0:00:01]} 17. Qd1 {[%emt 0:00:08]} Bd6 {[%emt 0:00:23]} 18. Bxd6 {[%emt 0:00:07]} Qxd6 {[%emt 0:00:00]} 19. Ne2 {[%emt 0:00:04]} Nb4 {[%emt 0:00:01]} 20. a3 {[%emt 0:00:13]} Nxd3 {[%emt 0:00:04]} 21. Qxd3 {[%emt 0:00:01]} Qb6 {[%emt 0:00:20]} 22. Rc2 {[%emt 0:00:02]} Rc6 {[%emt 0:00:06]} 23. Rxc6 {[%emt 0:00:09]} bxc6 {[%emt 0:00:09]} 24. Rc1 {[%emt 0:00:02]} Rc8 {[%emt 0:00:31]} 25. b4 {[%emt 0:00:19]} a5 {[%emt 0:00:02]} 26. b5 {[%emt 0:00:02]} (26. Nf4 $16) 26... c5 {[%emt 0:00:02]} (26... Nd6 {simplifies} 27. Rxc6 Rxc6 28. bxc6 Qxc6 29. Qb3 Qb5) 27. dxc5 {[%emt 0:00:02]} Nxc5 {[%emt 0:00:03]} ({Better is} 27... Rxc5 $14 28. Rxc5 Qxc5) 28. Qd4 $2 {[%emt 0:00:01]} ({White should try} 28. Qb1 $18) 28... Qxb5 $11 {[%emt 0:00:02]} 29. Nf4 {[%emt 0:00:02] [#] And now Nxe6 would win.} Rc6 {[%emt 0:00:04] Strongly threatening ...Nb3.} 30. Nh5 {[%emt 0:00:02][%csl Gh5][%cal Rd4g7]} Rc7 {[%emt 0:00:04] White must now prevent ...Nb3.} 31. Nf4 $2 {[%emt 0:00:05][%mdl 8192]} (31. Qh4 $11 Qd7 {[#]} 32. Nxg7 $1 Kxg7 33. Rxc5 Rxc5 34. Qd4+ Kf7 35. Qxc5) 31... Nb3 $1 $19 {[%emt 0:00:04][%csl LRc1,LRd4]} 32. Rxc7 {[%emt 0:00:06][%csl Gc7][%cal Rd4g7]} Nxd4 {[%emt 0:00:06] Weighted Error Value: White=0.38/Black=0.19 (very precise)} 0-1

[Event "4th Tata Steel India Blitz Women 2022"]
[Site "Kolkota"]
[Date "2022.12.03"]
[Round "9.3"]
[White "Ushenina, Anna"]
[Black "Vaishali, Rameshbabu"]
[Result "0-1"]
[ECO "D37"]
[WhiteElo "2454"]
[BlackElo "2454"]
[Annotator "TA"]
[PlyCount "72"]
[EventDate "2022.11.29"]
[EventType "tourn"]
[EventCountry "IND"]
[SourceTitle "playchess.com"]
[Source "ChessBase"]
[SourceQuality "1"]
[TimeControl "180+2"]

{[%evp 9,72,23,29,7,12,-31,43,25,38,20,54,0,106,37,43,10,14,14,24,15,22,0,23,11,83,0,62,0,53,-6,0,0,0,0,0,0,0,0,6,0,18,19,33,18,20,-413,-412,-404,-410,-400,-391,-539,-522,-761,-753,-750,-736,-787,-778,-762,-762,-815,-805,-689,-641]} 1. d4 {[%emt 0:00:02]} Nf6 {[%emt 0:00:03]} 2. c4 {[%emt 0:00:02]} e6 {[%emt 0:00:02]} 3. Nf3 {[%emt 0:00:10]} d5 {[%emt 0:00:05]} 4. Nc3 {[%emt 0:00:02]} a6 {[%emt 0:00:03]} 5. cxd5 {[%emt 0:00:04]} exd5 {[%emt 0:00:02]} 6. Qb3 {[%emt 0:00:08] D37: Queen's Gambit Declined: 5 Bf4.} c6 {[%emt 0:00:54]} 7. e4 {[%emt 0:01:13]} dxe4 {[%emt 0:00:38]} (7... Nxe4 $15 8. Nxe4 Qe7) 8. Ng5 $14 {[%emt 0:00:05][%csl Gg5,LRe4,LRf7][%cal Rb3f7,Bf3g5,Bg5e4,Be4c5][%mdl 32] [#] White is slightly better.} Nd5 {[%emt 0:01:06] [#]} 9. Ngxe4 $146 {[%emt 0:00:02]} (9. Bc4 $5 {[%cal Rc3d5]} Be7 10. h4 $14 (10. Ngxe4 O-O $11)) ({Predecessor:} 9. Bc4 Bb4 10. Ngxe4 Bxc3+ 11. bxc3 O-O 12. O-O b5 13. Bxd5 Qxd5 14. Re1 Bf5 15. Ba3 {0-1 (57) Csonka,B (2481)-Shengelia,D (2526) Hungary 2019}) 9... Nxc3 {[%emt 0:00:13]} 10. Qxc3 {[%emt 0:00:04]} ({Better is} 10. bxc3 $14 Be7 11. Bd3) 10... Qe7 {[%emt 0:00:08]} (10... Be7 $11 {keeps the balance.}) 11. Qe3 {[%emt 0:00:01]} (11. Bd3 $16) 11... Be6 {[%emt 0:00:04]} 12. Nc5 {[%emt 0:00:18]} Bc8 {[%emt 0:00:04]} 13. Bc4 {[%emt 0:00:10]} Qxe3+ {[%emt 0:00:02]} 14. Bxe3 {[%emt 0:00:01]} Nd7 {[%emt 0:00:02]} 15. O-O-O {[%emt 0:00:11]} Be7 {[%emt 0:00:02]} (15... Nb6 $5 {[%cal Rb6c4]} 16. Bb3 Bd6 $11) 16. Rhe1 {[%emt 0:00:08] next Bg5 is good for White.} O-O {[%emt 0:00:01]} (16... b5 $11 17. Bd3 (17. Bg5 f6 $11) 17... Nxc5 18. dxc5 O-O) 17. h3 {[%emt 0:00:18]} (17. Bf4 $16 Bf6 18. Ne4) 17... Bf6 {[%emt 0:00:01]} ({Black should play} 17... b5 $11 18. Bb3 Nxc5 19. dxc5 a5) 18. g4 {[%emt 0:00:04]} (18. Ne4 $14) 18... h6 {[%emt 0:00:02]} (18... Nb6 $11 19. Bb3 a5) 19. f4 {[%emt 0:00:02]} ({White should try} 19. Ne4 $14) 19... Bh4 {[%emt 0:00:03]} 20. Re2 {[%emt 0:00:04]} b5 {[%emt 0:00:01]} 21. Bb3 {[%emt 0:00:02]} Nxc5 {[%emt 0:00:03]} 22. dxc5 {[%emt 0:00:01]} Re8 {[%emt 0:00:01]} 23. Rd6 {[%emt 0:00:20]} h5 {[%emt 0:00:02]} 24. f5 {[%emt 0:00:04]} (24. Rxc6 {with more complications.} Bg3 25. Bd5 Rxe3 26. Rxe3 Bxf4 27. Kd2) 24... hxg4 {[%emt 0:00:03]} 25. hxg4 {[%emt 0:00:00]} Ra7 {[%emt 0:00:01]} 26. Bd1 {[%emt 0:00:07]} (26. Rxc6 Rae7 27. Kd2 Bg3 $17) 26... Rae7 {[%emt 0:00:02]} 27. Rxc6 $2 {[%emt 0:00:05][%mdl 8192] Loses the game.} Rxe3 $19 {[%emt 0:00:03]} ({Stronger than} 27... Bb7 28. Rb6 Bc8 29. Bf2 Rxe2 30. Bxh4 $17) 28. Rxe3 {[%emt 0:00:01]} Bg5 {[%emt 0:00:01][%mdl 64] [#] Pin} 29. Kc2 {[%emt 0:00:05]} Bxe3 {[%emt 0:00:01]} 30. Bf3 {[%emt 0:00:03]} Bb7 {[%emt 0:00:01] Black is clearly winning.} 31. Re6 {[%emt 0:00:04]} fxe6 {[%emt 0:00:03]} 32. Bxb7 {[%emt 0:00:00]} Bxc5 {[%emt 0:00:02]} 33. fxe6 {[%emt 0:00:00]} Kf8 {[%emt 0:00:01]} 34. Bd5 {[%emt 0:00:01]} Ke7 {[%emt 0:00:01]} 35. Kd3 {[%emt 0:00:00]} Rd8 {[%emt 0:00:01]} 36. Ke4 {[%emt 0:00:01]} Rh8 {[%emt 0:00:02] Weighted Error Value: White=0.51/Black=0.20 (precise)} 0-1

[Event "4th Tata Steel India Blitz Women 2022"]
[Site "Kolkota"]
[Date "2022.12.03"]
[Round "9.4"]
[White "Kulkarni Bhakti"]
[Black "Muzychuk, Anna"]
[Result "1-0"]
[ECO "D00"]
[WhiteElo "2359"]
[BlackElo "2525"]
[Annotator "TA"]
[PlyCount "75"]
[EventDate "2022.11.29"]
[EventType "tourn"]
[EventCountry "IND"]
[SourceTitle "playchess.com"]
[Source "ChessBase"]
[SourceQuality "1"]
[TimeControl "180+2"]

{[%evp 9,75,-7,0,0,0,-6,0,0,1,0,0,2,2,0,41,39,60,61,65,65,110,111,107,112,109,72,173,168,150,109,182,156,215,204,230,195,270,260,263,240,297,290,358,149,325,292,631,618,586,368,435,330,329,341,322,331,361,349,354,341,369,367,950,916,12820,7183,5597,4089]} 1. d4 {[%emt 0:00:02]} Nf6 {[%emt 0:00:01]} 2. Nf3 {[%emt 0:00:05]} g6 {[%emt 0:00:01]} 3. Nc3 {[%emt 0:00:02]} d5 {[%emt 0:00:03]} 4. Bf4 {[%emt 0:00:01]} Bg7 {[%emt 0:00:03]} 5. Nb5 {[%emt 0:00:02]} Na6 {[%emt 0:00:02]} 6. e3 {[%emt 0:00:01] D00: 1 d4 d5: Unusual lines.} c6 {[%emt 0:00:08]} 7. Nc3 {[%emt 0:00:02]} Nc7 {[%emt 0:00:05]} 8. h3 {[%emt 0:00:04] The position is equal.} O-O {[%emt 0:00:05][%cal Oc6c5]} 9. Bd3 {[%emt 0:00:01]} b6 {[%emt 0:00:09]} 10. O-O {[%emt 0:00:07]} c5 {[%emt 0:00:07]} 11. a4 {[%emt 0:00:16] [#]} c4 $146 {[%emt 0:00:27]} ({Predecessor:} 11... Bb7 12. a5 Ne4 13. a6 Nxc3 14. bxc3 Bc8 15. c4 cxd4 16. exd4 Be6 17. cxd5 Nxd5 {½-½ (83) Gupta,A (2631)-Nigmatov,O (2437) Dubai 2022}) 12. Be2 {[%emt 0:00:04]} a6 {[%emt 0:00:04]} 13. b3 {[%emt 0:00:14]} cxb3 {[%emt 0:00:07]} 14. cxb3 {[%emt 0:00:02]} Bf5 {[%emt 0:00:19]} 15. Rc1 {[%emt 0:00:05]} Nce8 {[%emt 0:00:16]} 16. Ne5 {[%emt 0:00:12]} Nd6 {[%emt 0:00:04]} 17. Bg5 {[%emt 0:00:07][%cal Bf4g5,Bg5h4,Bh4g3,Bg3d6][%mdl 32] Strongly threatening Bxf6.} (17. Ng4 {simplifies} Nxg4 18. hxg4 Be6 19. Bf3) 17... Nde4 {[%emt 0:00:21] [#]} (17... Be6 $16) 18. Nxe4 $1 $18 {[%emt 0:00:33]} dxe4 {[%emt 0:00:01]} 19. Bc4 {[%emt 0:00:05] White is much more active. The black rooks are badly placed.} h6 {[%emt 0:00:08]} (19... Bd7 $16) 20. Bh4 {[%emt 0:00:20]} g5 {[%emt 0:00:09]} (20... Bc8 $16 21. Nxg6 b5) 21. Bg3 {[%emt 0:00:01]} e6 {[%emt 0:00:02]} 22. Qe2 {[%emt 0:00:11]} a5 {[%emt 0:00:01]} (22... Nd5 {might work better.} 23. Bxa6 Bxe5) 23. Nc6 {[%emt 0:00:17]} Qd7 {[%emt 0:00:04]} 24. Bb5 {[%emt 0:00:06]} Qb7 {[%emt 0:00:02]} 25. Bd6 {[%emt 0:00:08]} Rfe8 {[%emt 0:00:20] [#]} 26. Rc2 {[%emt 0:00:09]} (26. Ne7+ $1 $18 {[%mdl 512] is more deadly.} Rxe7 27. Bc6) 26... Kh7 $2 {[%emt 0:00:04] Black cannot hold the game after this.} (26... Bf8 $16) 27. Ne5 {[%emt 0:00:05] aiming for Rc7.} Nd5 {[%emt 0:00:09]} (27... Rec8 28. Bc6 Rxc6 29. Rxc6 Nd5) 28. Bc6 {[%emt 0:00:08]} Qa7 {[%emt 0:00:01]} 29. Bxe8 {[%emt 0:00:05]} Rxe8 {[%emt 0:00:01]} 30. g4 {[%emt 0:00:05]} Bxe5 {[%emt 0:00:11]} 31. Bxe5 {[%emt 0:00:03]} ({But not} 31. dxe5 Bg6 32. Rfc1 Qb7) 31... Bg6 {[%emt 0:00:01]} 32. Rfc1 {[%emt 0:00:01]} Qe7 {[%emt 0:00:02]} 33. Qb5 {[%emt 0:00:03]} h5 {[%emt 0:00:09]} 34. Kg2 {[%emt 0:00:03]} Rd8 {[%emt 0:00:04]} 35. Rc8 {[%emt 0:00:02]} f6 $2 {[%emt 0:00:07] [#]} (35... Rxc8 36. Rxc8 f6) 36. R8c7 $1 {[%emt 0:00:02][%mdl 512] White is clearly winning.} fxe5 {[%emt 0:00:09]} (36... Nxc7 37. Rxc7) 37. Rxe7+ {[%emt 0:00:01]} Nxe7 {[%emt 0:00:01]} 38. Rc7 {[%emt 0:00:01] Weighted Error Value: White=0.27 (precise) /Black=0.49} 1-0

[Event "4th Tata Steel India Blitz Women 2022"]
[Site "Kolkota"]
[Date "2022.12.03"]
[Round "9.5"]
[White "Kiolbasa, Oliwia"]
[Black "Koneru, Humpy"]
[Result "0-1"]
[ECO "C42"]
[WhiteElo "2406"]
[BlackElo "2574"]
[Annotator "TA"]
[PlyCount "66"]
[EventDate "2022.11.29"]
[EventType "tourn"]
[EventCountry "IND"]
[SourceTitle "playchess.com"]
[Source "ChessBase"]
[SourceQuality "1"]
[TimeControl "180+2"]

{[%evp 13,66,18,18,17,12,16,18,14,0,16,22,0,0,0,0,-1,-9,-11,8,0,0,-24,-21,-82,-81,-132,-121,-178,-193,-201,-189,-188,-152,-185,-181,-181,-180,-183,-172,-187,-185,-312,-307,-1067,-1060,-973,-1011,-1677,-1040,-1193,-1178,-29989,-29990,-29990,-29991]} 1. e4 {[%emt 0:00:01]} e5 {[%emt 0:00:01]} 2. Nf3 {[%emt 0:00:01]} Nf6 {[%emt 0:00:02]} 3. Nxe5 {[%emt 0:00:02]} d6 {[%emt 0:00:01]} 4. Nf3 {[%emt 0:00:02]} Nxe4 {[%emt 0:00:01]} 5. Nc3 {[%emt 0:00:01]} Nxc3 {[%emt 0:00:03]} 6. dxc3 {[%emt 0:00:02]} Be7 {[%emt 0:00:02]} 7. Be3 {[%emt 0:00:01]} O-O {[%emt 0:00:06]} 8. Qd2 {[%emt 0:00:02] C42: Petroff Defence: 3 Nxe5 and unusual White 3rd moves.} Nd7 {[%emt 0:00:02]} 9. O-O-O {[%emt 0:00:02]} Nf6 {[%emt 0:00:02]} 10. Bd3 {[%emt 0:00:02] The position is equal.} Re8 {[%emt 0:00:03]} 11. Rhe1 {[%emt 0:00:07] 11.Kb1 is the fancy move.} Bg4 {[%emt 0:00:04]} 12. h3 {[%emt 0:00:01]} Bxf3 {[%emt 0:00:04]} 13. gxf3 {[%emt 0:00:02]} d5 {[%emt 0:00:07]} 14. Rg1 {[%emt 0:00:01]} Qd6 {[%emt 0:00:14]} 15. Kb1 {[%emt 0:00:14] [#]} Bf8 $146 {[%emt 0:00:09]} ({Predecessor:} 15... Rad8 16. h4 a6 17. Bd4 g6 18. f4 Ne4 19. Qc1 c5 20. Be5 Qe6 21. Bxe4 dxe4 {½-½ (32) De Carlos Arregui,I (2432)-Bondars,G (2423) ICCF email 2017}) 16. Qc1 {[%emt 0:00:23]} c5 {[%emt 0:00:22]} 17. c4 {[%emt 0:00:02]} d4 {[%emt 0:00:02]} 18. Bf4 {[%emt 0:00:01]} (18. Bg5 $11 {keeps the balance.}) 18... Qc6 $17 {[%emt 0:00:16] White is on the road to losing.} 19. Qd2 {[%emt 0:00:28]} ({White should play} 19. Rg3) 19... Qxf3 {[%emt 0:01:06]} 20. h4 {[%emt 0:00:35]} (20. Rg3 $17 {was called for.} Qc6 21. f3) 20... Ne4 $19 {[%emt 0:00:00]} 21. Bxe4 {[%emt 0:00:07]} Rxe4 {[%emt 0:00:00]} ({Stronger than} 21... Qxe4 22. Rge1 Qf3 23. Bg3) 22. Bg3 {[%emt 0:00:37]} b6 {[%emt 0:00:00]} 23. Qg5 {[%emt 0:00:09]} h6 {[%emt 0:00:00]} 24. Qd5 {[%emt 0:00:09]} Rae8 {[%emt 0:00:00]} 25. a3 {[%emt 0:00:17]} Qf6 {[%emt 0:00:00]} 26. h5 {[%emt 0:00:06]} Qe6 {[%emt 0:00:01]} 27. Qb7 {[%emt 0:00:06]} (27. Qxe6 $142 R8xe6 28. Rd2) 27... Qxc4 {[%emt 0:00:07] [#] White must now prevent ...Re2.} 28. Qxa7 $2 {[%emt 0:00:07]} (28. Qd7) 28... Re2 {[%emt 0:00:12]} 29. Rc1 {[%emt 0:00:01]} d3 {[%emt 0:00:08][%cal Re2c2,Bd4d3,Bd3d2][%mdl 32]} 30. Qxb6 {[%emt 0:00:05]} d2 {[%emt 0:00:12]} 31. Rcd1 {[%emt 0:00:03]} Re1 {[%emt 0:00:02] [#] ( -> ...Rxg1)} 32. Bh2 {[%emt 0:00:05]} Rxg1 {[%emt 0:00:06]} 33. Bxg1 {[%emt 0:00:02]} Re1 {[%emt 0:00:04] Weighted Error Value: White=0.82/Black=0.27 (precise)} 0-1